Workbook

Sheet Sheet1
A1: 外遮阳复合卷帘招标报价清单
A3: 序号 | B3: 名称 | C3: 型号 | D3: 每樘规格尺寸及面积 | F3: 数量（樘） | G3: 面积（㎡） | H3: 综合单价组成明细 | M3: 含税全费用综合单价 （元/㎡） | N3: 金额（元）
D4: 洞口尺寸（mm） | E4: 面积（㎡） | H4: 主材费用 | I4: 辅助材料费用 | J4: 安装费用 | K4: 管理费、利润及其他措施费用 | L4: 税金
A5: 一 | B5: 东区8#楼
A6: 1 | B6: 外遮阳复合卷帘C0915 | C6: C0915 | D6: 900*1500 | E6: 1.350 | F6: 84 | G6: =F6*E6 -> 113.400
A7: 2 | B7: 外遮阳复合卷帘C1215 | C7: C1215 | D7: 1200*1500 | E7: 1.800 | F7: 84 | G7: 151.200
A8: 3 | B8: 外遮阳复合卷帘C1415 | C8: C1415 | D8: 1350*1500 | E8: 2.025 | F8: 28 | G8: 56.700
A9: 4 | B9: 外遮阳复合卷帘C1515 | C9: C1515 | D9: 1500*1500 | E9: 2.250 | F9: 84 | G9: 189.000
A10: 5 | B10: 外遮阳复合卷帘C1715 | C10: C1715 | D10: 1760*1500 | E10: 2.640 | F10: 56 | G10: 147.840
A11: 6 | B11: 外遮阳复合卷帘C1815 | C11: C1815 | D11: 1800*1500 | E11: 2.700 | F11: 84 | G11: 226.800
B12: 小计 | F12: =SUM(F6:F11) -> 420 | G12: =SUM(G6:G11) -> 884.940
A13: 二 | B13: 东区9#楼
A14: 1 | B14: 外遮阳复合卷帘C3 | C14: C3 | D14: 900*1500 | E14: 1.350 | F14: 56 | G14: =F14*E14 -> 75.600
A15: 2 | B15: 外遮阳复合卷帘C4 | C15: C4 | D15: 1200*1500 | E15: 1.800 | F15: 28 | G15: 50.400
A16: 3 | B16: 外遮阳复合卷帘C5 | C16: C5 | D16: 1500*1500 | E16: 2.250 | F16: 84 | G16: 189.000
A17: 4 | B17: 外遮阳复合卷帘C6 | C17: C6 | D17: 1800*1500 | E17: 2.700 | F17: 56 | G17: 151.200
A18: 5 | B18: 外遮阳复合卷帘C7 | C18: C7 | D18: 2100*1500 | E18: 3.150 | F18: 28 | G18: 88.200
B19: 小计 | F19: =SUM(F14:F18) -> 252 | G19: =SUM(G14:G18) -> 554.400
A20: 三 | B20: 东区10#楼
A21: 1 | B21: 外遮阳复合卷帘C3 | C21: C3 | D21: 900*1500 | E21: 1.350 | F21: 112 | G21: =F21*E21 -> 151.200
A22: 2 | B22: 外遮阳复合卷帘C4 | C22: C4 | D22: 1200*1500 | E22: 1.800 | F22: 56 | G22: =F22*E22 -> 100.800
A23: 3 | B23: 外遮阳复合卷帘C5 | C23: C5 | D23: 1500*1500 | E23: 2.250 | F23: 112 | G23: =F23*E23 -> 252.000
A24: 4 | B24: 外遮阳复合卷帘C6 | C24: C6 | D24: 1800*1500 | E24: 2.700 | F24: 112 | G24: 302.400
A25: 5 | B25: 外遮阳复合卷帘C7 | C25: C7 | D25: 2100*1500 | E25: 3.150 | F25: 56 | G25: 176.400
B26: 小计 | F26: =SUM(F21:F25) -> 448 | G26: =SUM(G21:G25) -> 982.800
A27: 四 | B27: 东区11#楼
A28: 1 | B28: 外遮阳复合卷帘C3 | C28: C3 | D28: 900*1500 | E28: 1.350 | F28: 112 | G28: 151.200
A29: 2 | B29: 外遮阳复合卷帘C4 | C29: C4 | D29: 1200*1500 | E29: 1.800 | F29: 56 | G29: 100.800
A30: 3 | B30: 外遮阳复合卷帘C5 | C30: C5 | D30: 1500*1500 | E30: 2.250 | F30: 112 | G30: 252.000
A31: 4 | B31: 外遮阳复合卷帘C6 | C31: C6 | D31: 1800*1500 | E31: 2.700 | F31: 112 | G31: 302.400
A32: 5 | B32: 外遮阳复合卷帘C7 | C32: C7 | D32: 2100*1500 | E32: 3.150 | F32: 56 | G32: 176.400
B33: 小计 | F33: =SUM(F28:F32) -> 448 | G33: =SUM(G28:G32) -> 982.800
A34: 五 | B34: 东区12#楼
A35: 1 | B35: 外遮阳复合卷帘C3 | C35: C3 | D35: 900*1500 | E35: 1.350 | F35: 56 | G35: =F35*E35 -> 75.600
A36: 2 | B36: 外遮阳复合卷帘C4 | C36: C4 | D36: 1200*1500 | E36: 1.800 | F36: 28 | G36: 50.400
A37: 3 | B37: 外遮阳复合卷帘C5 | C37: C5 | D37: 1500*1500 | E37: 2.250 | F37: 84 | G37: 189.000
A38: 4 | B38: 外遮阳复合卷帘C6 | C38: C6 | D38: 1800*1500 | E38: 2.700 | F38: 56 | G38: 151.200
A39: 5 | B39: 外遮阳复合卷帘C7 | C39: C7 | D39: 2100*1500 | E39: 3.150 | F39: 28 | G39: 88.200
B40: 小计 | F40: =SUM(F35:F39) -> 252 | G40: =SUM(G35:G39) -> 554.400
A41: 六 | B41: 东区13#楼
A42: 1 | B42: 外遮阳复合卷帘C0915 | C42: C0915 | D42: 900*1500 | E42: 1.350 | F42: 84 | G42: =F42*E42 -> 113.400
A43: 2 | B43: 外遮阳复合卷帘C1215 | C43: C1215 | D43: 1200*1500 | E43: 1.800 | F43: 84 | G43: 151.200
A44: 3 | B44: 外遮阳复合卷帘C1415 | C44: C1415 | D44: 1350*1500 | E44: 2.025 | F44: 28 | G44: 56.700
A45: 4 | B45: 外遮阳复合卷帘C1515 | C45: C1515 | D45: 1500*1500 | E45: 2.250 | F45: 84 | G45: 189.000
A46: 5 | B46: 外遮阳复合卷帘C1715 | C46: C1715 | D46: 1760*1500 | E46: 2.640 | F46: 56 | G46: 147.840
A47: 6 | B47: 外遮阳复合卷帘C1815 | C47: C1815 | D47: 1800*1500 | E47: 2.700 | F47: 84 | G47: 226.800
B48: 小计 | F48: =SUM(F42:F47) -> 420 | G48: =SUM(G42:G47) -> 884.940
A49: 七 | B49: 东区15#楼
A50: 1 | B50: 外遮阳复合卷帘C0915 | C50: C0915 | D50: 900*1500 | E50: 1.350 | F50: 140 | G50: =F50*E50 -> 189.000
A51: 2 | B51: 外遮阳复合卷帘C1215 | C51: C1215 | D51: 1200*1500 | E51: 1.800 | F51: 84 | G51: 151.200
A52: 3 | B52: 外遮阳复合卷帘C1515 | C52: C1515 | D52: 1500*1500 | E52: 2.250 | F52: 112 | G52: 252.000
A53: 4 | B53: 外遮阳复合卷帘C1815 | C53: C1815 | D53: 1800*1500 | E53: 2.700 | F53: 140 | G53: 378.000
B54: 小计 | F54: =SUM(F50:F53) -> 476 | G54: =SUM(G50:G53) -> 970.200
A55: 八 | B55: 东区16#楼
A56: 1 | B56: 外遮阳复合卷帘C0915 | C56: C0915 | D56: 900*1500 | E56: 1.350 | F56: 84 | G56: =F56*E56 -> 113.400
A57: 2 | B57: 外遮阳复合卷帘C1115 | C57: C1115 | D57: 1160*1500 | E57: 1.740 | F57: 84 | G57: 146.160
A58: 3 | B58: 外遮阳复合卷帘C1215 | C58: C1215 | D58: 1200*1500 | E58: 1.800 | F58: 84 | G58: 151.200
A59: 4 | B59: 外遮阳复合卷帘C1515 | C59: C1515 | D59: 1500*1500 | E59: 2.250 | F59: 84 | G59: 189.000
A60: 5 | B60: 外遮阳复合卷帘C1815 | C60: C1815 | D60: 1800*1500 | E60: 2.700 | F60: 168 | G60: 453.600
B61: 小计 | F61: =SUM(F56:F60) -> 504 | G61: =SUM(G56:G60) -> 1053.360
A62: 九 | B62: 西区1#楼
A63: 1 | B63: 外遮阳复合卷帘C0715 | C63: C0715 | D63: 650*1500 | E63: 0.975 | F63: 36 | G63: =F63*E63 -> 35.100
A64: 2 | B64: 外遮阳复合卷帘C0915 | C64: C0915 | D64: 900*1500 | E64: 1.350 | F64: 108 | G64: 145.800
A65: 3 | B65: 外遮阳复合卷帘C1215 | C65: C1215 | D65: 1200*1500 | E65: 1.800 | F65: 18 | G65: 32.400
A66: 4 | B66: 外遮阳复合卷帘C1515 | C66: C1515 | D66: 1500*1500 | E66: 2.250 | F66: 36 | G66: 81.000
A67: 5 | B67: 外遮阳复合卷帘C1815 | C67: C1815 | D67: 1800*1500 | E67: 2.700 | F67: 54 | G67: 145.800
B68: 小计 | F68: =SUM(F63:F67) -> 252 | G68: =SUM(G63:G67) -> 440.100
A69: 十 | B69: 西区2#楼
A70: 1 | B70: 外遮阳复合卷帘C1215 | C70: C1215 | D70: 1200*1500 | E70: 1.800 | F70: 44 | G70: =F70*E70 -> 79.200
A71: 2 | B71: 外遮阳复合卷帘C1515 | C71: C1515 | D71: 1500*1500 | E71: 2.250 | F71: 99 | G71: 222.750
A72: 3 | B72: 外遮阳复合卷帘C1815 | C72: C1815 | D72: 1800*1500 | E72: 2.700 | F72: 66 | G72: 178.200
A73: 4 | B73: 外遮阳复合卷帘C0915 | C73: C0915 | D73: 900*1500 | E73: 1.350 | F73: 77 | G73: 103.950
B74: 小计 | F74: =SUM(F70:F73) -> 286 | G74: =SUM(G70:G73) -> 584.100
A75: 十一 | B75: 西区3#楼
A76: 1 | B76: 外遮阳复合卷帘C1215 | C76: C1215 | D76: 1200*1500 | E76: 1.800 | F76: 44 | G76: =F76*E76 -> 79.200
A77: 2 | B77: 外遮阳复合卷帘C1515 | C77: C1515 | D77: 1500*1500 | E77: 2.250 | F77: 99 | G77: 222.750
A78: 3 | B78: 外遮阳复合卷帘C1815 | C78: C1815 | D78: 1800*1500 | E78: 2.700 | F78: 66 | G78: 178.200
A79: 4 | B79: 外遮阳复合卷帘C0915 | C79: C0915 | D79: 900*1500 | E79: 1.350 | F79: 77 | G79: 103.950
B80: 小计 | F80: =SUM(F76:F79) -> 286 | G80: =SUM(G76:G79) -> 584.100
A81: 十二 | B81: 西区5#楼
A82: 1 | B82: 外遮阳复合卷帘C0715 | C82: C0715 | D82: 650*1500 | E82: 0.975 | F82: 44 | G82: =F82*E82 -> 42.900
A83: 2 | B83: 外遮阳复合卷帘C0915 | C83: C0915 | D83: 900*1500 | E83: 1.350 | F83: 132 | G83: =F83*E83 -> 178.200
A84: 3 | B84: 外遮阳复合卷帘C1215 | C84: C1215 | D84: 1200*1500 | E84: 1.800 | F84: 22 | G84: =F84*E84 -> 39.600
A85: 4 | B85: 外遮阳复合卷帘C1515 | C85: C1515 | D85: 1500*1500 | E85: 2.250 | F85: 44 | G85: 99.000
A86: 5 | B86: 外遮阳复合卷帘C1815 | C86: C1815 | D86: 1800*1500 | E86: 2.700 | F86: 66 | G86: 178.200
B87: 小计 | F87: =SUM(F82:F86) -> 308 | G87: =SUM(G82:G86) -> 537.900
A88: 十三 | B88: 西区6#楼
A89: 1 | B89: 外遮阳复合卷帘C1215 | C89: C1215 | D89: 1200*1500 | E89: 1.800 | F89: 44 | G89: 79.200
A90: 2 | B90: 外遮阳复合卷帘C1515 | C90: C1515 | D90: 1500*1500 | E90: 2.250 | F90: 99 | G90: 222.750
A91: 3 | B91: 外遮阳复合卷帘C1815 | C91: C1815 | D91: 1800*1500 | E91: 2.700 | F91: 66 | G91: 178.200
A92: 4 | B92: 外遮阳复合卷帘C0915 | C92: C0915 | D92: 900*1500 | E92: 1.350 | F92: 77 | G92: 103.950
B93: 小计 | F93: =SUM(F89:F92) -> 286 | G93: =SUM(G89:G92) -> 584.100
A94: 十四 | B94: 西区8#楼
A95: 1 | B95: 外遮阳复合卷帘C1215 | C95: C1215 | D95: 1200*1500 | E95: 1.800 | F95: 22 | G95: =F95*E95 -> 39.600
A96: 2 | B96: 外遮阳复合卷帘C1515 | C96: C1515 | D96: 1500*1500 | E96: 2.250 | F96: 66 | G96: =F96*E96 -> 148.500
A97: 3 | B97: 外遮阳复合卷帘C1815 | C97: C1815 | D97: 1800*1500 | E97: 2.700 | F97: 44 | G97: 118.800
A98: 4 | B98: 外遮阳复合卷帘C0915 | C98: C0915 | D98: 900*1500 | E98: 1.350 | F98: 66 | G98: 89.100
B99: 小计 | F99: =SUM(F95:F98) -> 198 | G99: =SUM(G95:G98) -> 396.000
A100: 十五 | B100: 西区9#楼
A101: 1 | B101: 外遮阳复合卷帘C1215 | C101: C1215 | D101: 1200*1500 | E101: 1.800 | F101: 44 | G101: 79.200
A102: 2 | B102: 外遮阳复合卷帘C1515 | C102: C1515 | D102: 1500*1500 | E102: 2.250 | F102: 99 | G102: 222.750
A103: 3 | B103: 外遮阳复合卷帘C1815 | C103: C1815 | D103: 1800*1500 | E103: 2.700 | F103: 66 | G103: 178.200
A104: 4 | B104: 外遮阳复合卷帘C0915 | C104: C0915 | D104: 900*1500 | E104: 1.350 | F104: 77 | G104: 103.950
B105: 小计 | F105: =SUM(F101:F104) -> 286 | G105: =SUM(G101:G104) -> 584.100
A106: 十六 | B106: 西区10#楼
A107: 1 | B107: 外遮阳复合卷帘C0715 | C107: C0715 | D107: 650*1500 | E107: 0.975 | F107: 22 | G107: =F107*E107 -> 21.450
A108: 2 | B108: 外遮阳复合卷帘C0915 | C108: C0915 | D108: 900*1500 | E108: 1.350 | F108: 88 | G108: 118.800
A109: 3 | B109: 外遮阳复合卷帘C1215 | C109: C1215 | D109: 1200*1500 | E109: 1.800 | F109: 22 | G109: 39.600
A110: 4 | B110: 外遮阳复合卷帘C1515 | C110: C1515 | D110: 1500*1500 | E110: 2.250 | F110: 22 | G110: 49.500
A111: 5 | B111: 外遮阳复合卷帘C1815 | C111: C1815 | D111: 1800*1500 | E111: 2.700 | F111: 44 | G111: 118.800
B112: 小计 | F112: =SUM(F107:F111) -> 198 | G112: =SUM(G107:G111) -> 348.150
A113: 十七 | B113: 西区11#楼
A114: 1 | B114: 外遮阳复合卷帘C1215 | C114: C1215 | D114: 1200*1500 | E114: 1.800 | F114: 18 | G114: =F114*E114 -> 32.400
A115: 2 | B115: 外遮阳复合卷帘C1515 | C115: C1515 | D115: 1500*1500 | E115: 2.250 | F115: 54 | G115: =F115*E115 -> 121.500
A116: 3 | B116: 外遮阳复合卷帘C1815 | C116: C1815 | D116: 1800*1500 | E116: 2.700 | F116: 36 | G116: 97.200
A117: 4 | B117: 外遮阳复合卷帘C0915 | C117: C0915 | D117: 900*1500 | E117: 1.350 | F117: 54 | G117: 72.900
B118: 小计 | F118: =SUM(F114:F117) -> 162 | G118: =SUM(G114:G117) -> 324.000
A119: 十八 | B119: 西区12#楼
A120: 1 | B120: 外遮阳复合卷帘C1215 | C120: C1215 | D120: 1200*1500 | E120: 1.800 | F120: 18 | G120: 32.400
A121: 2 | B121: 外遮阳复合卷帘C1515 | C121: C1515 | D121: 1500*1500 | E121: 2.250 | F121: 54 | G121: 121.500
A122: 3 | B122: 外遮阳复合卷帘C1815 | C122: C1815 | D122: 1800*1500 | E122: 2.700 | F122: 36 | G122: 97.200
A123: 4 | B123: 外遮阳复合卷帘C0915 | C123: C0915 | D123: 900*1500 | E123: 1.350 | F123: 54 | G123: 72.900
B124: 小计 | F124: =SUM(F120:F123) -> 162 | G124: =SUM(G120:G123) -> 324.000
A125: 十九 | B125: 西区13#楼
A126: 1 | B126: 外遮阳复合卷帘C0815 | C126: C0815 | D126: 800*1500 | E126: 1.200 | F126: 44 | G126: =F126*E126 -> 52.800
A127: 2 | B127: 外遮阳复合卷帘C0915 | C127: C0915 | D127: 900*1500 | E127: 1.350 | F127: 88 | G127: =F127*E127 -> 118.800
A128: 3 | B128: 外遮阳复合卷帘C1615 | C128: C1615 | D128: 1600*1500 | E128: 2.400 | F128: 66 | G128: =F128*E128 -> 158.400
A129: 4 | B129: 外遮阳复合卷帘C1515 | C129: C1515 | D129: 1500*1500 | E129: 2.250 | F129: 66 | G129: 148.500
A130: 5 | B130: 外遮阳复合卷帘C1815 | C130: C1815 | D130: 1800*1500 | E130: 2.700 | F130: 66 | G130: 178.200
B131: 小计 | F131: =SUM(F126:F130) -> 330 | G131: =SUM(G126:G130) -> 656.700
A132: 二十 | B132: 西区15#楼
A133: 1 | B133: 外遮阳复合卷帘C0815 | C133: C0815 | D133: 800*1500 | E133: 1.200 | F133: 44 | G133: 52.800
A134: 2 | B134: 外遮阳复合卷帘C0915 | C134: C0915 | D134: 900*1500 | E134: 1.350 | F134: 88 | G134: 118.800
A135: 3 | B135: 外遮阳复合卷帘C1615 | C135: C1615 | D135: 1600*1500 | E135: 2.400 | F135: 66 | G135: 158.400
A136: 4 | B136: 外遮阳复合卷帘C1515 | C136: C1515 | D136: 1500*1500 | E136: 2.250 | F136: 66 | G136: 148.500
A137: 5 | B137: 外遮阳复合卷帘C1815 | C137: C1815 | D137: 1800*1500 | E137: 2.700 | F137: 66 | G137: 178.200
B138: 小计 | F138: =SUM(F133:F137) -> 330 | G138: =SUM(G133:G137) -> 656.700
A139: 二十一 | B139: 西区16#楼
A140: 1 | B140: 外遮阳复合卷帘C0915 | C140: C0915 | D140: 900*1500 | E140: 1.350 | F140: 56 | G140: =F140*E140 -> 75.600
A141: 2 | B141: 外遮阳复合卷帘C1515 | C141: C1515 | D141: 1500*1500 | E141: 2.250 | F141: 28 | G141: 63.000
A142: 3 | B142: 外遮阳复合卷帘C1815 | C142: C1815 | D142: 1800*1500 | E142: 2.700 | F142: 84 | G142: 226.800
B143: 小计 | F143: =SUM(F140:F142) -> 168 | G143: =SUM(G140:G142) -> 365.400
A144: 二十二 | B144: 西区18#楼
A145: 1 | B145: 外遮阳复合卷帘C0915 | C145: C0915 | D145: 900*1500 | E145: 1.350 | F145: 112 | G145: =F145*E145 -> 151.200
A146: 2 | B146: 外遮阳复合卷帘C1515 | C146: C1515 | D146: 1500*1500 | E146: 2.250 | F146: 168 | G146: 378.000
A147: 3 | B147: 外遮阳复合卷帘C1815 | C147: C1815 | D147: 1800*1500 | E147: 2.700 | F147: 112 | G147: 302.400
B148: 小计 | F148: =SUM(F145:F147) -> 392 | G148: =SUM(G145:G147) -> 831.600
A149: 二十三 | B149: 西区19#楼
A150: 1 | B150: 外遮阳复合卷帘C0915 | C150: C0915 | D150: 900*1500 | E150: 1.350 | F150: 56 | G150: 75.600
A151: 2 | B151: 外遮阳复合卷帘C1515 | C151: C1515 | D151: 1500*1500 | E151: 2.250 | F151: 28 | G151: 63.000
A152: 3 | B152: 外遮阳复合卷帘C1815 | C152: C1815 | D152: 1800*1500 | E152: 2.700 | F152: 84 | G152: 226.800
B153: 小计 | F153: =SUM(F150:F152) -> 168 | G153: =SUM(G150:G152) -> 365.400
A154: 二十四 | B154: 西区20#楼
A155: 1 | B155: 外遮阳复合卷帘C1215 | C155: C1215 | D155: 1200*1500 | E155: 1.800 | F155: 28 | G155: =F155*E155 -> 50.400
A156: 2 | B156: 外遮阳复合卷帘C0915 | C156: C0915 | D156: 900*1500 | E156: 1.350 | F156: 84 | G156: =F156*E156 -> 113.400
A157: 3 | B157: 外遮阳复合卷帘C1315 | C157: C1315 | D157: 1300*1500 | E157: 1.950 | F157: 28 | G157: =F157*E157 -> 54.600
A158: 4 | B158: 外遮阳复合卷帘C1515 | C158: C1515 | D158: 1500*1500 | E158: 2.250 | F158: 56 | G158: 126.000
A159: 5 | B159: 外遮阳复合卷帘C1815 | C159: C1815 | D159: 1800*1500 | E159: 2.700 | F159: 112 | G159: 302.400
B160: 小计 | F160: =SUM(F155:F159) -> 308 | G160: =SUM(G155:G159) -> 646.800
A161: 二十五 | B161: 西区21#楼
A162: 1 | B162: 外遮阳复合卷帘C1215 | C162: C1215 | D162: 1200*1500 | E162: 1.800 | F162: 28 | G162: 50.400
A163: 2 | B163: 外遮阳复合卷帘C0915 | C163: C0915 | D163: 900*1500 | E163: 1.350 | F163: 84 | G163: 113.400
A164: 3 | B164: 外遮阳复合卷帘C1315 | C164: C1315 | D164: 1300*1500 | E164: 1.950 | F164: 28 | G164: 54.600
A165: 4 | B165: 外遮阳复合卷帘C1515 | C165: C1515 | D165: 1500*1500 | E165: 2.250 | F165: 56 | G165: 126.000
A166: 5 | B166: 外遮阳复合卷帘C1815 | C166: C1815 | D166: 1800*1500 | E166: 2.700 | F166: 112 | G166: 302.400
B167: 小计 | F167: =SUM(F162:F166) -> 308 | G167: =SUM(G162:G166) -> 646.800
A168: 二十六 | B168: 西区22#楼
A169: 1 | B169: 外遮阳复合卷帘C0915 | C169: C0915 | D169: 900*1500 | E169: 1.350 | F169: 112 | G169: =F169*E169 -> 151.200
A170: 2 | B170: 外遮阳复合卷帘C1715 | C170: C1715 | D170: 1760*1500 | E170: 2.640 | F170: 28 | G170: 73.920
A171: 3 | B171: 外遮阳复合卷帘C1515 | C171: C1515 | D171: 1500*1500 | E171: 2.250 | F171: 112 | G171: 252.000
A172: 4 | B172: 外遮阳复合卷帘C1815 | C172: C1815 | D172: 1800*1500 | E172: 2.700 | F172: 112 | G172: 302.400
B173: 小计 | F173: =SUM(F169:F172) -> 364 | G173: =SUM(G169:G172) -> 779.520
A174: 1 | B174: 汇总量 | F174: =F173+F167+F160+F153+F148+F143+F138+F131+F124+F118+F112+F105+F99+F93+F87+F80+F74+F68+F61+F54+F48+F40+F33+F26+F19+F12 -> 8012 | G174: =G173+G167+G160+G153+G148+G143+G138+G131+G124+G118+G112+G105+G99+G93+G87+G80+G74+G68+G61+G54+G48+G40+G33+G26+G19+G12 -> 16523.31
A175: 3 | B175: 报价汇总金额（小写）
A176: 4 | B176: 报价汇总金额（大写）
A177: 说明：含税全费用综合单价包含：外遮阳复合卷帘及配套材料价款、市内外运输、 现场发生的二次转运费和垂直运输费用、运输保险、现 场安装（含安装脚手架）、安全措施费用、调试、验收、管理费、利润、总包配合费（2%）、二年质保期内因产品质量产生的零部件更换、税金及其它相关一切费用。
A178: 2、本次招标中外遮阳复合卷帘的规格尺寸均参照相对应的窗户尺寸及现场进行制作安装，竣工结算时按实际测量尺寸及安装数量进行结算，招标人清单中提供的窗户规格尺寸仅供投标报价使用。
